[Event "*** Titled Tuesday 3|2 Blitz (Late)"]
[Site "Chess.com"]
[Date "2016.12.06"]
[Round "2"]
[White "Noukii"]
[Black "josiwales"]
[Result "1-0"]
[WhiteElo "2650"]
[BlackElo "2241"]
[TimeControl "180+2"]
[EndTime "17:18:06 PST"]
[Termination "Noukii won by resignation"]

1. d4 {[%clk 0:03:01.1]} 1... Nf6 {[%clk 0:02:56.3]} 2. c4 {[%clk 0:03:00.8]}
2... g6 {[%clk 0:02:56.6]} 3. Nc3 {[%clk 0:03:02.3]} 3... Bg7 {[%clk 0:02:58.1]}
4. Nf3 {[%clk 0:03:03.2]} 4... O-O {[%clk 0:02:59]} 5. Bg5 {[%clk 0:03:04.6]}
5... d6 {[%clk 0:02:57.6]} 6. e3 {[%clk 0:03:06]} 6... Nbd7 {[%clk 0:02:58.7]}
7. Be2 {[%clk 0:03:06.4]} 7... c5 {[%clk 0:02:56.7]} 8. d5 {[%clk 0:03:07.3]}
8... h6 {[%clk 0:02:55.4]} 9. Bh4 {[%clk 0:03:08.2]} 9... g5 {[%clk 0:02:55.8]}
10. Bg3 {[%clk 0:03:09.8]} 10... a6 {[%clk 0:02:54.8]} 11. a4 {[%clk 0:03:10.1]}
11... Re8 {[%clk 0:02:52.4]} 12. Nd2 {[%clk 0:03:07.5]} 12... Nf8 {[%clk
0:02:51.5]} 13. Bd3 {[%clk 0:03:05.1]} 13... Ng6 {[%clk 0:02:50.6]} 14. Qc2
{[%clk 0:03:03.8]} 14... Ne5 {[%clk 0:02:36.8]} 15. Bxe5 {[%clk 0:03:00.5]}
15... dxe5 {[%clk 0:02:38.7]} 16. a5 {[%clk 0:02:59.3]} 16... e6 {[%clk
0:02:34.1]} 17. e4 {[%clk 0:02:56.5]} 17... exd5 {[%clk 0:02:34.4]} 18. cxd5
{[%clk 0:02:57]} 18... Nh5 {[%clk 0:02:28.7]} 19. Nc4 {[%clk 0:02:54.8]} 19...
Nf4 {[%clk 0:02:29.5]} 20. Ne3 {[%clk 0:02:54.3]} 20... Bd7 {[%clk 0:02:08.1]}
21. Be2 {[%clk 0:02:54.1]} 21... Nxe2 {[%clk 0:02:04.1]} 22. Qxe2 {[%clk
0:02:48.6]} 22... Rf8 {[%clk 0:01:45.9]} 23. g4 {[%clk 0:02:46.3]} 23... b5
{[%clk 0:01:42.6]} 24. axb6 {[%clk 0:02:35.7]} 24... Qxb6 {[%clk 0:01:43.2]} 25.
O-O {[%clk 0:02:36.6]} 25... Bb5 {[%clk 0:01:41.5]} 26. Qd2 {[%clk 0:02:36.9]}
26... Bxf1 {[%clk 0:01:41.2]} 27. Rxf1 {[%clk 0:02:37.4]} 27... Rfb8 {[%clk
0:01:38.6]} 28. Rb1 {[%clk 0:02:29.7]} 28... Qb4 {[%clk 0:01:36.6]} 29. Nf5
{[%clk 0:02:29.6]} 29... Bf8 {[%clk 0:01:36.1]} 30. d6 {[%clk 0:02:29.8]} 30...
Rd8 {[%clk 0:01:36]} 31. Qe3 {[%clk 0:02:23.5]} 31... Bxd6 {[%clk 0:01:30.2]}
32. Nxh6+ {[%clk 0:02:23.5]} 32... Kh7 {[%clk 0:01:29.1]} 33. Qxg5 {[%clk
0:02:21.4]} 33... Rg8 {[%clk 0:01:21.7]} 34. Nxg8 {[%clk 0:02:12.4]} 34... Rxg8
{[%clk 0:01:23.6]} 35. Qf5+ {[%clk 0:02:11.5]} 35... Kg7 {[%clk 0:01:20.7]} 36.
Nd5 {[%clk 0:02:10.8]} 36... Qd2 {[%clk 0:01:19.3]} 37. Ne3 {[%clk 0:02:08.4]}
37... Kf8 {[%clk 0:01:10.1]} 38. Rd1 {[%clk 0:02:09.4]} 1-0

[Event "*** Titled Tuesday 3|2 Blitz (Late)"]
[Site "Chess.com"]
[Date "2016.12.06"]
[Round "2"]
[White "nonscitis"]
[Black "Quiet_Desperation"]
[Result "1-0"]
[WhiteElo "2369"]
[BlackElo "2302"]
[TimeControl "180+2"]
[EndTime "17:18:56 PST"]
[Termination "nonscitis won by resignation"]

1. d4 {[%clk 0:03:02]} 1... Nf6 {[%clk 0:03:00]} 2. c4 {[%clk 0:02:56.6]} 2...
e6 {[%clk 0:02:56.9]} 3. Nf3 {[%clk 0:02:57.2]} 3... Bb4+ {[%clk 0:02:57.5]} 4.
Nbd2 {[%clk 0:02:57.4]} 4... b6 {[%clk 0:02:57.5]} 5. a3 {[%clk 0:02:52]} 5...
Bxd2+ {[%clk 0:02:58.4]} 6. Qxd2 {[%clk 0:02:51.3]} 6... Bb7 {[%clk 0:02:57.7]}
7. b4 {[%clk 0:02:52.3]} 7... O-O {[%clk 0:02:58.4]} 8. Bb2 {[%clk 0:02:51.8]}
8... d6 {[%clk 0:02:59.1]} 9. e3 {[%clk 0:02:52.2]} 9... Ne4 {[%clk 0:02:59.3]}
10. Qc2 {[%clk 0:02:52.5]} 10... Nd7 {[%clk 0:03:00.2]} 11. Bd3 {[%clk
0:02:48.5]} 11... f5 {[%clk 0:02:59.2]} 12. d5 {[%clk 0:02:46.3]} 12... exd5
{[%clk 0:02:54.7]} 13. Nd4 {[%clk 0:02:44.7]} 13... dxc4 {[%clk 0:02:24.9]} 14.
Bxc4+ {[%clk 0:02:41]} 14... d5 {[%clk 0:02:22.3]} 15. Ne6 {[%clk 0:02:38.8]}
15... Qe7 {[%clk 0:02:18.7]} 16. Nxf8 {[%clk 0:02:30.3]} 16... Rxf8 {[%clk
0:02:19.2]} 17. Ba2 {[%clk 0:02:26.9]} 17... Kh8 {[%clk 0:02:08.6]} 18. O-O
{[%clk 0:02:25.4]} 18... c5 {[%clk 0:02:09.2]} 19. Rad1 {[%clk 0:02:10.4]} 19...
d4 {[%clk 0:01:52.7]} 20. exd4 {[%clk 0:02:05.9]} 20... Qg5 {[%clk 0:01:53.6]}
21. f4 {[%clk 0:02:03.3]} 21... Qh4 {[%clk 0:01:53.7]} 22. dxc5 {[%clk 0:02:01]}
22... Ndf6 {[%clk 0:01:54.2]} 23. c6 {[%clk 0:01:55.6]} 23... Bxc6 {[%clk
0:01:39.2]} 24. Qxc6 {[%clk 0:01:33.4]} 24... Ng4 {[%clk 0:01:40.1]} 25. h3
{[%clk 0:01:30.3]} 25... Qg3 {[%clk 0:01:37.4]} 26. hxg4 {[%clk 0:01:05.6]}
26... Qe3+ {[%clk 0:01:33.1]} 27. Kh1 {[%clk 0:01:00.2]} 27... Ng3+ {[%clk
0:01:31.2]} 28. Kh2 {[%clk 0:01:01]} 28... Ne2 {[%clk 0:01:30.6]} 29. Bxg7+
{[%clk 0:00:44.6]} 29... Kxg7 {[%clk 0:01:31.1]} 30. Qc7+ {[%clk 0:00:45.1]}
30... Kg6 {[%clk 0:01:10.9]} 31. Rd6+ {[%clk 0:00:44.7]} 31... Rf6 {[%clk
0:01:11.9]} 32. Rxf6+ {[%clk 0:00:45.5]} 1-0

[Event "*** Titled Tuesday 3|2 Blitz (Late)"]
[Site "Chess.com"]
[Date "2016.12.06"]
[Round "2"]
[White "jposthuma"]
[Black "AllStarShark"]
[Result "1-0"]
[WhiteElo "2212"]
[BlackElo "2339"]
[TimeControl "180+2"]
[EndTime "17:20:04 PST"]
[Termination "jposthuma won by checkmate"]

1. d4 {[%clk 0:02:59.9]} 1... d5 {[%clk 0:02:55]} 2. Nf3 {[%clk 0:03:00.3]} 2...
Nf6 {[%clk 0:02:55.6]} 3. Bf4 {[%clk 0:03:01.6]} 3... c5 {[%clk 0:02:56.2]} 4.
e3 {[%clk 0:03:02.4]} 4... Nc6 {[%clk 0:02:56.4]} 5. c3 {[%clk 0:03:03.2]} 5...
Qb6 {[%clk 0:02:57.5]} 6. Qb3 {[%clk 0:03:04.2]} 6... c4 {[%clk 0:02:58.5]} 7.
Qxb6 {[%clk 0:03:05]} 7... axb6 {[%clk 0:02:59.5]} 8. Na3 {[%clk 0:03:06.7]}
8... Ra5 {[%clk 0:03:00.6]} 9. Bc7 {[%clk 0:02:46.5]} 9... Ra6 {[%clk
0:02:52.9]} 10. Nc2 {[%clk 0:02:25]} 10... Bf5 {[%clk 0:02:45]} 11. Nb4 {[%clk
0:01:52.5]} 11... Kd7 {[%clk 0:02:20.7]} 12. Nxa6 {[%clk 0:01:45.4]} 12... bxa6
{[%clk 0:02:21.9]} 13. Bxb6 {[%clk 0:01:38.6]} 13... e6 {[%clk 0:02:15.5]} 14.
Ne5+ {[%clk 0:01:25.8]} 14... Nxe5 {[%clk 0:02:02]} 15. dxe5 {[%clk 0:01:27.7]}
15... Ng4 {[%clk 0:02:02.1]} 16. Bd4 {[%clk 0:01:27.6]} 16... Be7 {[%clk
0:01:55.7]} 17. h3 {[%clk 0:01:27.5]} 17... Nh6 {[%clk 0:01:56.6]} 18. O-O-O
{[%clk 0:01:20.8]} 18... Rb8 {[%clk 0:01:49]} 19. f3 {[%clk 0:00:32.2]} 19... f6
{[%clk 0:01:43.5]} 20. e4 {[%clk 0:00:21.7]} 20... Bg6 {[%clk 0:01:33.1]} 21.
exd5 {[%clk 0:00:20.5]} 21... exd5 {[%clk 0:01:35]} 22. exf6 {[%clk 0:00:16.7]}
22... gxf6 {[%clk 0:01:29]} 23. Be3 {[%clk 0:00:14.4]} 23... Nf5 {[%clk
0:01:28.6]} 24. Bf4 {[%clk 0:00:12.1]} 24... Rb5 {[%clk 0:01:23.1]} 25. Bxc4
{[%clk 0:00:12.8]} 25... Rc5 {[%clk 0:01:20.1]} 26. Rxd5+ {[%clk 0:00:13.8]}
26... Rxd5 {[%clk 0:01:20.7]} 27. Bxd5 {[%clk 0:00:15.7]} 27... Bc5 {[%clk
0:01:16.7]} 28. Rd1 {[%clk 0:00:15.9]} 28... Ke8 {[%clk 0:01:13]} 29. Be4 {[%clk
0:00:14.6]} 29... Ne3 {[%clk 0:01:09.9]} 30. Bxg6+ {[%clk 0:00:14.6]} 30... hxg6
{[%clk 0:01:09.6]} 31. Re1 {[%clk 0:00:14.7]} 31... g5 {[%clk 0:01:09.4]} 32.
Bxe3 {[%clk 0:00:16]} 32... Be7 {[%clk 0:01:10.6]} 33. Bc5 {[%clk 0:00:16.8]}
33... Kd8 {[%clk 0:01:11.9]} 34. Bxe7+ {[%clk 0:00:17.5]} 34... Kc8 {[%clk
0:01:13.2]} 35. Bxf6 {[%clk 0:00:19.4]} 35... Kd7 {[%clk 0:01:14.5]} 36. Bxg5
{[%clk 0:00:19.9]} 36... a5 {[%clk 0:01:16.4]} 37. Re5 {[%clk 0:00:20.6]} 37...
a4 {[%clk 0:01:18.3]} 38. Ra5 {[%clk 0:00:22.1]} 38... a3 {[%clk 0:01:19.6]} 39.
bxa3 {[%clk 0:00:23.7]} 39... Kc6 {[%clk 0:01:21]} 40. h4 {[%clk 0:00:23.7]}
40... Kb6 {[%clk 0:01:22.3]} 41. Re5 {[%clk 0:00:24.9]} 41... Kc6 {[%clk
0:01:23.6]} 42. f4 {[%clk 0:00:26.5]} 42... Kd6 {[%clk 0:01:25.1]} 43. h5 {[%clk
0:00:28.1]} 43... Kc6 {[%clk 0:01:26.6]} 44. h6 {[%clk 0:00:29.8]} 44... Kd6
{[%clk 0:01:28.1]} 45. h7 {[%clk 0:00:31.4]} 45... Kc6 {[%clk 0:01:29.6]} 46.
h8=Q {[%clk 0:00:33]} 46... Kd7 {[%clk 0:01:31.1]} 47. Qf6 {[%clk 0:00:33.8]}
47... Kc8 {[%clk 0:01:30.4]} 48. Re7 {[%clk 0:00:35.4]} 48... Kb8 {[%clk
0:01:29.3]} 49. Qf8# {[%clk 0:00:37.1]} 1-0

[Event "*** Titled Tuesday 3|2 Blitz (Late)"]
[Site "Chess.com"]
[Date "2016.12.06"]
[Round "2"]
[White "platy3"]
[Black "hypert"]
[Result "1-0"]
[WhiteElo "2701"]
[BlackElo "2283"]
[TimeControl "180+2"]
[EndTime "17:20:27 PST"]
[Termination "platy3 won by resignation"]

1. e4 {[%clk 0:02:59.4]} 1... c5 {[%clk 0:03:00.3]} 2. Nf3 {[%clk 0:02:59]} 2...
e6 {[%clk 0:03:01.8]} 3. d4 {[%clk 0:02:59.8]} 3... cxd4 {[%clk 0:03:03.7]} 4.
Nxd4 {[%clk 0:03:01.3]} 4... Nc6 {[%clk 0:03:05.4]} 5. Nc3 {[%clk 0:03:02.5]}
5... Qc7 {[%clk 0:03:07]} 6. f4 {[%clk 0:03:03.7]} 6... a6 {[%clk 0:03:01.6]} 7.
Nxc6 {[%clk 0:03:04]} 7... dxc6 {[%clk 0:02:56.6]} 8. Bd3 {[%clk 0:02:44.8]}
8... e5 {[%clk 0:02:56.5]} 9. O-O {[%clk 0:02:44.6]} 9... Nf6 {[%clk 0:02:48.8]}
10. fxe5 {[%clk 0:02:42.3]} 10... Ng4 {[%clk 0:02:44.8]} 11. Bf4 {[%clk
0:02:22.2]} 11... Be6 {[%clk 0:02:11.7]} 12. Qf3 {[%clk 0:02:15.3]} 12... Nxe5
{[%clk 0:01:59.7]} 13. Qg3 {[%clk 0:02:15.3]} 13... Qb6+ {[%clk 0:01:59.1]} 14.
Kh1 {[%clk 0:02:13.8]} 14... Ng6 {[%clk 0:01:56.3]} 15. Be3 {[%clk 0:02:13.7]}
15... Qa5 {[%clk 0:01:32.9]} 16. Ne2 {[%clk 0:02:05]} 16... Be7 {[%clk
0:01:19.3]} 17. Nd4 {[%clk 0:02:02.8]} 17... Qe5 {[%clk 0:01:13.6]} 18. Qf2
{[%clk 0:01:57.3]} 18... O-O {[%clk 0:01:04]} 19. c3 {[%clk 0:01:43.3]} 19...
Rad8 {[%clk 0:00:52.5]} 20. Rfd1 {[%clk 0:01:38]} 20... Bc8 {[%clk 0:00:50.2]}
21. Nf5 {[%clk 0:01:34.1]} 21... Bf6 {[%clk 0:00:25.2]} 22. Bc2 {[%clk
0:01:15.7]} 22... Rxd1+ {[%clk 0:00:24.7]} 23. Rxd1 {[%clk 0:01:16]} 23... Rd8
{[%clk 0:00:26.2]} 24. Rxd8+ {[%clk 0:01:15.2]} 24... Bxd8 {[%clk 0:00:28.1]}
25. Bd4 {[%clk 0:01:11.4]} 25... Qf4 {[%clk 0:00:25.3]} 26. Qxf4 {[%clk
0:01:09.2]} 26... Nxf4 {[%clk 0:00:27.2]} 27. Nd6 {[%clk 0:01:02.2]} 27... Be6
{[%clk 0:00:23.8]} 28. Nxb7 {[%clk 0:01:02.6]} 28... Bc7 {[%clk 0:00:19.3]} 29.
Nc5 {[%clk 0:01:00.2]} 29... Bc8 {[%clk 0:00:20.5]} 30. Ba4 {[%clk 0:00:56.9]}
30... Ne2 {[%clk 0:00:18.3]} 31. Be3 {[%clk 0:00:54.1]} 31... Bb6 {[%clk
0:00:16.9]} 32. Bxc6 {[%clk 0:00:53.7]} 32... Kf8 {[%clk 0:00:17.4]} 33. Bd7
{[%clk 0:00:36.9]} 33... Bxc5 {[%clk 0:00:16.4]} 34. Bxc5+ {[%clk 0:00:37.3]}
1-0

[Event "*** Titled Tuesday 3|2 Blitz (Late)"]
[Site "Chess.com"]
[Date "2016.12.06"]
[Round "2"]
[White "Fh2411"]
[Black "FranklinAPalomo"]
[Result "0-1"]
[WhiteElo "2344"]
[BlackElo "2410"]
[TimeControl "180+2"]
[EndTime "17:20:41 PST"]
[Termination "FranklinAPalomo won by resignation"]

1. d4 {[%clk 0:02:59.8]} 1... c5 {[%clk 0:03:02]} 2. d5 {[%clk 0:02:57.6]} 2...
Nf6 {[%clk 0:03:03.9]} 3. Nf3 {[%clk 0:02:58.5]} 3... d6 {[%clk 0:03:02.3]} 4.
c4 {[%clk 0:02:59.1]} 4... g6 {[%clk 0:03:04.2]} 5. Nc3 {[%clk 0:02:59.1]} 5...
Bg7 {[%clk 0:03:05.7]} 6. Bf4 {[%clk 0:02:56.5]} 6... O-O {[%clk 0:03:07.6]} 7.
h3 {[%clk 0:02:53.5]} 7... a6 {[%clk 0:03:09.5]} 8. a4 {[%clk 0:02:52.4]} 8...
Nbd7 {[%clk 0:03:11.4]} 9. e3 {[%clk 0:02:52.8]} 9... Ne8 {[%clk 0:03:13.3]} 10.
Be2 {[%clk 0:02:47.8]} 10... Nc7 {[%clk 0:03:15.2]} 11. O-O {[%clk 0:02:47.1]}
11... Rb8 {[%clk 0:03:17.1]} 12. e4 {[%clk 0:02:32.7]} 12... f5 {[%clk
0:03:03.3]} 13. exf5 {[%clk 0:02:20.3]} 13... Rxf5 {[%clk 0:03:05.2]} 14. Qd2
{[%clk 0:02:19.7]} 14... Qf8 {[%clk 0:03:04.1]} 15. Be3 {[%clk 0:02:11]} 15...
Ne5 {[%clk 0:02:59.9]} 16. Nxe5 {[%clk 0:02:10.2]} 16... Bxe5 {[%clk 0:03:01.8]}
17. f4 {[%clk 0:02:03.7]} 17... Bg7 {[%clk 0:02:58.8]} 18. Rae1 {[%clk
0:01:54.8]} 18... Rf7 {[%clk 0:02:43]} 19. Ne4 {[%clk 0:01:50.7]} 19... h6
{[%clk 0:02:26.3]} 20. Ng3 {[%clk 0:01:49]} 20... b5 {[%clk 0:02:24.7]} 21. axb5
{[%clk 0:01:25.1]} 21... axb5 {[%clk 0:02:26.6]} 22. Bd3 {[%clk 0:01:23.5]}
22... bxc4 {[%clk 0:02:17.5]} 23. Bxg6 {[%clk 0:01:23.8]} 23... Rxb2 {[%clk
0:02:18.4]} 24. Qc1 {[%clk 0:01:24.2]} 24... Nxd5 {[%clk 0:02:13.7]} 25. Nh5
{[%clk 0:01:04.6]} 25... Nxe3 {[%clk 0:02:03.5]} 26. Rxe3 {[%clk 0:01:00.7]}
26... Bb7 {[%clk 0:02:04.2]} 27. Rg3 {[%clk 0:00:58.2]} 27... Bd4+ {[%clk
0:01:50.5]} 28. Kh1 {[%clk 0:00:53.8]} 28... Rg7 {[%clk 0:01:52.4]} 29. f5
{[%clk 0:00:38.5]} 29... Qa8 {[%clk 0:01:33.9]} 30. Qxc4+ {[%clk 0:00:15.6]}
30... Bd5 {[%clk 0:01:32.7]} 31. Nxg7 {[%clk 0:00:08.6]} 31... Bxc4 {[%clk
0:01:10.4]} 32. f6 {[%clk 0:00:06.3]} 32... Bxf1 {[%clk 0:00:58.7]} 0-1

[Event "*** Titled Tuesday 3|2 Blitz (Late)"]
[Site "Chess.com"]
[Date "2016.12.06"]
[Round "2"]
[White "ecwinslow"]
[Black "SwiftyMcBishop"]
[Result "1-0"]
[WhiteElo "2068"]
[BlackElo "2107"]
[TimeControl "180+2"]
[EndTime "17:21:12 PST"]
[Termination "ecwinslow won on time"]

1. d4 {[%clk 0:03:02]} 1... d5 {[%clk 0:02:52]} 2. c4 {[%clk 0:03:02.1]} 2...
dxc4 {[%clk 0:02:52.6]} 3. Nf3 {[%clk 0:03:00.6]} 3... Nf6 {[%clk 0:02:54]} 4.
e3 {[%clk 0:03:00.8]} 4... e6 {[%clk 0:02:55.3]} 5. Bxc4 {[%clk 0:03:01.2]} 5...
c5 {[%clk 0:02:56.5]} 6. O-O {[%clk 0:03:01.8]} 6... a6 {[%clk 0:02:58]} 7. a4
{[%clk 0:02:58.1]} 7... Nc6 {[%clk 0:02:54.9]} 8. Qe2 {[%clk 0:02:57.8]} 8...
Be7 {[%clk 0:02:54.9]} 9. Rd1 {[%clk 0:02:57.6]} 9... Qc7 {[%clk 0:02:55.9]} 10.
Nc3 {[%clk 0:02:53.6]} 10... O-O {[%clk 0:02:57.1]} 11. h3 {[%clk 0:02:37]}
11... b6 {[%clk 0:02:55.8]} 12. d5 {[%clk 0:02:32.5]} 12... exd5 {[%clk
0:02:53.6]} 13. Nxd5 {[%clk 0:02:31.2]} 13... Nxd5 {[%clk 0:02:54.6]} 14. Bxd5
{[%clk 0:02:29.6]} 14... Bb7 {[%clk 0:02:55.9]} 15. e4 {[%clk 0:02:28.4]} 15...
Rad8 {[%clk 0:02:40.2]} 16. Bg5 {[%clk 0:02:24.3]} 16... Bxg5 {[%clk 0:02:13.1]}
17. Nxg5 {[%clk 0:02:21.7]} 17... Nd4 {[%clk 0:02:13.6]} 18. Qh5 {[%clk
0:01:48.7]} 18... h6 {[%clk 0:01:56.5]} 19. Nf3 {[%clk 0:01:43.4]} 19... Bxd5
{[%clk 0:01:46.4]} 20. exd5 {[%clk 0:01:44.2]} 20... Ne2+ {[%clk 0:01:42.5]} 21.
Kf1 {[%clk 0:01:41.7]} 21... Nf4 {[%clk 0:01:43.2]} 22. Qf5 {[%clk 0:01:36]}
22... g6 {[%clk 0:01:43.2]} 23. Qe4 {[%clk 0:01:17.7]} 23... Rfe8 {[%clk
0:01:37.7]} 24. Qc4 {[%clk 0:01:18.2]} 24... Qd6 {[%clk 0:00:20.2]} 25. Rd2
{[%clk 0:01:05.6]} 25... Qf6 {[%clk 0:00:17.3]} 26. h4 {[%clk 0:00:53]} 26...
Rd6 {[%clk 0:00:11]} 27. Rad1 {[%clk 0:00:49]} 27... Qf5 {[%clk 0:00:12.1]} 28.
Qxa6 {[%clk 0:00:41]} 28... Nxg2 {[%clk 0:00:10.9]} 29. Kxg2 {[%clk 0:00:22.3]}
29... Qg4+ {[%clk 0:00:12.2]} 30. Kh2 {[%clk 0:00:21.3]} 30... Qxf3 {[%clk
0:00:13.6]} 31. Qd3 {[%clk 0:00:19.6]} 31... Qf4+ {[%clk 0:00:11.5]} 32. Qg3
{[%clk 0:00:17.9]} 32... Qf6 {[%clk 0:00:12.2]} 33. b3 {[%clk 0:00:14.2]} 33...
Re4 {[%clk 0:00:13]} 34. Rd3 {[%clk 0:00:09.5]} 34... Rxh4+ {[%clk 0:00:03.6]}
35. Kg2 {[%clk 0:00:09.4]} 35... Rh5 {[%clk 0:00:03.4]} 36. Rf3 {[%clk
0:00:06.1]} 1-0

[Event "*** Titled Tuesday 3|2 Blitz (Late)"]
[Site "Chess.com"]
[Date "2016.12.06"]
[Round "2"]
[White "nonsopolo1"]
[Black "pedromartinez91"]
[Result "0-1"]
[WhiteElo "2185"]
[BlackElo "2349"]
[TimeControl "180+2"]
[EndTime "17:21:23 PST"]
[Termination "pedromartinez91 won by checkmate"]

1. e4 {[%clk 0:03:02]} 1... c5 {[%clk 0:02:49.3]} 2. Nf3 {[%clk 0:03:02.1]} 2...
Nc6 {[%clk 0:02:50.4]} 3. Bb5 {[%clk 0:03:00.4]} 3... d6 {[%clk 0:02:48.6]} 4.
O-O {[%clk 0:03:01.1]} 4... Bd7 {[%clk 0:02:49.1]} 5. Re1 {[%clk 0:03:02.2]}
5... Nf6 {[%clk 0:02:48]} 6. c3 {[%clk 0:03:02.3]} 6... a6 {[%clk 0:02:48.2]} 7.
Bf1 {[%clk 0:03:01.5]} 7... Bg4 {[%clk 0:02:48.7]} 8. h3 {[%clk 0:03:02]} 8...
Bxf3 {[%clk 0:02:49]} 9. Qxf3 {[%clk 0:03:02.4]} 9... g6 {[%clk 0:02:50.5]} 10.
d3 {[%clk 0:03:00.7]} 10... Bg7 {[%clk 0:02:49.7]} 11. Nd2 {[%clk 0:03:01.1]}
11... O-O {[%clk 0:02:49.5]} 12. a4 {[%clk 0:03:01.6]} 12... b5 {[%clk
0:02:48.6]} 13. Qg3 {[%clk 0:02:55.5]} 13... Nh5 {[%clk 0:02:43]} 14. Qf3 {[%clk
0:02:46.7]} 14... b4 {[%clk 0:02:42.7]} 15. cxb4 {[%clk 0:02:33.3]} 15... Nxb4
{[%clk 0:02:37.5]} 16. Nc4 {[%clk 0:02:28.8]} 16... Nc2 {[%clk 0:02:37.4]} 17.
Bg5 {[%clk 0:02:25.4]} 17... Nxa1 {[%clk 0:02:37.6]} 18. Rxa1 {[%clk 0:02:25.5]}
18... Nf6 {[%clk 0:02:38.1]} 19. Ne3 {[%clk 0:02:18.2]} 19... Rb8 {[%clk
0:02:38]} 20. Ra2 {[%clk 0:02:12.5]} 20... Qd7 {[%clk 0:02:33.6]} 21. g4 {[%clk
0:01:58.3]} 21... Qe6 {[%clk 0:02:32.6]} 22. Nd5 {[%clk 0:01:49.3]} 22... Nxd5
{[%clk 0:02:29]} 23. exd5 {[%clk 0:01:50.1]} 23... Qe5 {[%clk 0:02:29.7]} 24.
Bf4 {[%clk 0:01:46.2]} 24... Qf6 {[%clk 0:02:27]} 25. d4 {[%clk 0:01:38.2]}
25... g5 {[%clk 0:02:23.5]} 26. dxc5 {[%clk 0:01:22.1]} 26... Qxf4 {[%clk
0:02:21.8]} 27. Qxf4 {[%clk 0:01:23]} 27... gxf4 {[%clk 0:02:21.5]} 28. c6
{[%clk 0:01:19.7]} 28... Rxb2 {[%clk 0:02:21.7]} 29. Ra3 {[%clk 0:01:20.2]}
29... Bd4 {[%clk 0:02:20.3]} 30. Rf3 {[%clk 0:01:19.2]} 30... e5 {[%clk
0:02:19.1]} 31. Bxa6 {[%clk 0:01:16]} 31... Bb6 {[%clk 0:02:15.1]} 32. Kg2
{[%clk 0:01:12.5]} 32... f5 {[%clk 0:02:10.8]} 33. g5 {[%clk 0:01:10.8]} 33...
Kf7 {[%clk 0:02:11.4]} 34. h4 {[%clk 0:01:06]} 34... h6 {[%clk 0:02:10.8]} 35.
Rc3 {[%clk 0:00:59.8]} 35... Bc7 {[%clk 0:02:10.1]} 36. a5 {[%clk 0:00:57.9]}
36... Ra8 {[%clk 0:02:06.7]} 37. Bd3 {[%clk 0:00:55]} 37... Rxa5 {[%clk
0:02:06.7]} 38. Bxf5 {[%clk 0:00:54]} 38... Raa2 {[%clk 0:02:07.1]} 39. Rf3
{[%clk 0:00:42.9]} 39... hxg5 {[%clk 0:02:03.2]} 40. hxg5 {[%clk 0:00:43.4]}
40... Bd8 {[%clk 0:02:02.8]} 41. Be4 {[%clk 0:00:36.7]} 41... Kg7 {[%clk
0:02:00.1]} 42. Bf5 {[%clk 0:00:36.3]} 42... Bb6 {[%clk 0:01:59.9]} 43. Kh3
{[%clk 0:00:27.7]} 43... Rxf2 {[%clk 0:01:58.3]} 44. Rxf2 {[%clk 0:00:20.9]}
44... Rxf2 {[%clk 0:01:57.1]} 45. Kg4 {[%clk 0:00:21.6]} 45... Rg2+ {[%clk
0:01:54.8]} 46. Kh5 {[%clk 0:00:21.6]} 46... f3 {[%clk 0:01:54]} 47. Bd3 {[%clk
0:00:22.5]} 47... f2 {[%clk 0:01:53.7]} 48. Kh4 {[%clk 0:00:03.2]} 48... Rg1
{[%clk 0:01:52.8]} 49. Kh3 {[%clk 0:00:03.7]} 49... f1=Q+ {[%clk 0:01:52.8]} 50.
Bxf1 {[%clk 0:00:04.5]} 50... Rxf1 {[%clk 0:01:54.2]} 51. Kg2 {[%clk 0:00:05.9]}
51... Rf2+ {[%clk 0:01:55.3]} 52. Kg3 {[%clk 0:00:07.2]} 52... Rf5 {[%clk
0:01:54.9]} 53. Kg4 {[%clk 0:00:05.3]} 53... Kg6 {[%clk 0:01:55.7]} 54. Kh4
{[%clk 0:00:06.1]} 54... Bc7 {[%clk 0:01:55.7]} 55. Kh3 {[%clk 0:00:06.6]} 55...
e4 {[%clk 0:01:56.3]} 56. Kh4 {[%clk 0:00:07.5]} 56... e3 {[%clk 0:01:57.4]} 57.
Kh3 {[%clk 0:00:08.7]} 57... e2 {[%clk 0:01:58.5]} 58. Kh2 {[%clk 0:00:10.1]}
58... e1=Q {[%clk 0:01:56.7]} 59. Kh3 {[%clk 0:00:10.5]} 59... Qg1 {[%clk
0:01:55.9]} 60. Kh4 {[%clk 0:00:11]} 60... Rxg5 {[%clk 0:01:54.9]} 61. Kh3
{[%clk 0:00:11.6]} 61... Rh5# {[%clk 0:01:55.8]} 0-1